Cogmind - Beta 14 @@@ ROGUE MODE // 2024.08.25 @ 19:45:27 Player: H3-RMN Result: Destroyed by S-10 Pest with Light Assault Rifle Performance ------------- Evolutions (0) 0 Regions Visited (2) 400 Robots Destroyed (30) 150 Value Destroyed (959) 959 Prototype IDs (13) 260 Alien Tech Used (0) 0 Bonus (0) 0 TOTAL SCORE: 1769 Bonus ------- None Cogmind --------- Core Integrity 0/250 Matter 185/300 Energy 200/200 System Corruption 0% Temperature Cool (0) Movement Treading (560) Ox5 Location -10/Subcaves Parts ------- > --- POWER (1) -------- Subdweller Power Source > --- PROPULSION (2) --- Light Treads Light Treads > --- UTILITY (2) ------ Humpback > --- WEAPON (2) ------- Subdweller Laser Subdweller Beam Cannon > --- INVENTORY (35) --- Light Ion Engine Subdweller Power Source Wheel Subdweller Monowheel Small Storage Unit Core Shielding Gun Armor Scrap Shield Scrap Shield Trap Extractor (2/4 Shrapnel) Subdweller Beam Cannon Assault Rifle Battle Rifle Subdweller Machine Gun Improved Light Cannon Grenade Launcher Datajack Multitool Flamer Flamer Peak State ------------ > --- POWER ------------ Subdweller Power Source > --- PROPULSION ------- Light Treads Subdweller Monowheel > --- UTILITY ---------- Humpback > --- WEAPON ----------- Subdweller Machine Gun Improved Light Cannon > --- INVENTORY -------- Light Ion Engine Subdweller Power Source Light Treads Light Treads Wheel Subdweller Monowheel Small Storage Unit Core Shielding Gun Armor Scrap Shield Trap Extractor Subdweller Laser Assault Rifle Battle Rifle Grenade Launcher Datajack Multitool Multitool Flamer Flamer [Rating: 15] Favorites ----------- Power Subdweller Power Source Engine Subdweller Power Source Propulsion Light Treads Treads Light Treads Wheel Wheel Utility Humpback Device Seismic Detector Storage Humpback Protection Core Shielding Weapon Improved Light Cannon Energy Gun Subdweller Laser Energy Cannon Subdweller Beam Cannon Ballistic Gun Assault Rifle Ballistic Cannon Improved Light Cannon Launcher Grenade Launcher Special Weapon Mining Laser Special Melee Weapon Datajack Build | -11 -10 -10 ------- Run | Yrd Mat Sub Slots Evolved . | . . . Power . | . . . Propulsion . | . . . Utility . | . . . Weapon . | . . . Parts Attached 45 | 8 13 24 Power 7 | 1 3 3 Engine 7 | 1 3 3 Core . | . . . Reactor . | . . . Propulsion 15 | 3 1 11 Treads 8 | 1 1 6 Leg . | . . . Wheel 7 | 2 . 5 Hover . | . . . Flight . | . . . Utility 6 | 2 1 3 Device 2 | 1 . 1 Storage 3 | 1 . 2 Processor . | . . . Hackware . | . . . Protection 1 | . 1 . Artifact . | . . . Weapon 17 | 2 8 7 Energy Gun 2 | 1 . 1 Energy Cannon 1 | . . 1 Ballistic Gun 6 | 1 4 1 Ballistic Cannon 4 | . 2 2 Launcher 1 | . . 1 Special Weapon 2 | . 2 . Impact Weapon . | . . . Slashing Weapon . | . . . Piercing Weapon . | . . . Special Melee Weapon 1 | . . 1 Unidentified Prototypes . | . . . Parts Lost 9 | . 1 8 Power 2 | . 1 1 Propulsion 5 | . . 5 Utility . | . . . Weapon 2 | . . 2 Highest Loss Streak 2 | . 1 2 To Critical Strikes 1 | . . 1 Average Slot Usage (%) 88 | . 99 84 Engine 13 | . 14 13 Treads 18 | . 21 17 Wheel 8 | . 6 9 Device 1 | . 5 . Storage 13 | . 14 13 Protection 2 | . 8 . Energy Gun 5 | . . 7 Energy Cannon 1 | . . 1 Ballistic Gun 3 | . 9 . Ballistic Cannon 15 | . 16 15 Special Melee Weapon 1 | . . 2 Peak Build Rating 15 | 7 10 15 Average Rating 11 | 5 8 12 On Entrance 5 | . 7 9 Naked Turns . | . . . Heaviest Build 217 | 13 19 217 Greatest Support 40 | 26 40 40 Greatest Overweight (x) 21 | 1 1 21 Average Overweight (x) 5 | . . 8 Largest Inventory Capacity 35 | 8 8 35 Average Capacity 27 | 7 8 34 Most Carried 24 | 6 8 24 Average Carried 15 | 3 7 18 Final Capacity 35 | 8 8 35 Final Carried 22 | 6 8 22 Class Distribution -------------------- 72% | Hauler-Mutant 27% | Mutant Dominant Class ---------------- Mutant | -10/Materials Hauler-Mutant | -10/Subcaves Resources | -11 -10 -10 ----------- Run | Yrd Mat Sub Matter Collected 1245 | 273 355 617 Remotely . | . . . Salvage Created 790 | 89 325 376 Parts 46 | 6 19 21 Haulers Intercepted . | . . . Recyclers Shooed 1 | 1 . . Parts Field Recycled . | . . . Retrieved Matter . | . . . Parts Self-Destructed 11 | . . 11 Prevented . | . . . Kills | -11 -10 -10 ------- Run | Yrd Mat Sub Combat Hostiles Destroyed 25 | . 10 15 Guns 7 | . 3 4 Cannons 16 | . 7 9 AOE 2 | . . 2 Classes Destroyed 8 | 2 4 2 Tunneler 2 | 2 . . Recycler 1 | 1 . . Operator 1 | . 1 . Watcher 1 | . 1 . Swarmer 3 | . 3 . Grunt 9 | . 7 2 Sentry 1 | . . 1 Subdweller 12 | . . 12 Best Kill Streak 3 | 3 2 2 Combat Bots Only 2 | . 2 2 Max Kills in Single Turn 2 | 2 1 1 Gunslinging . | . . . Exploded 1 | . . 1 Melee . | . . . Uniques/NPCs Destroyed . | . . . Combat | -11 -10 -10 -------- Run | Yrd Mat Sub Hostile Shots Fired 141 | . 36 105 Missed 45 | . 12 33 Damage Taken 1781 | . 268 1513 Core 251 | . 49 202 Absorbed by Shields . | . . . Core Remaining (%) 100 | 100 . . Volleys Fired 122 | 7 47 68 Largest 2 | 2 2 2 Hottest 100 | 60 100 99 Shots Fired 218 | 14 79 125 Gun 78 | 14 38 26 Cannon 125 | . 36 89 Launcher 10 | . . 10 Special 5 | . 5 . Kinetic 184 | 7 74 103 Thermal 17 | . 5 12 Explosive 10 | . . 10 Electromagnetic 7 | 7 . . Robot Hit Streak 10 | 3 8 10 Robot Miss Streak 4 | 1 4 3 Penetration Max . | . . . Secondary Targets 1 | . 1 . Max Gunslinging Chain 1 | . 1 . Shots Hit Robots 120 | 9 39 72 Core Hits 52 | 4 18 30 Critical Kills . | . . . Critical Parts Destroyed . | . . . Critical Strikes 9 | . 4 5 Destroy 1 | . . 1 Blast 8 | . 4 4 Melee Attacks . | . . . Impact . | . . . Slashing . | . . . Piercing . | . . . Sneak Attacks . | . . . Combat Hostiles . | . . . Follow-up Attacks . | . . . Damage Inflicted 2629 | 148 576 1905 Guns 787 | 148 297 342 Cannons 1310 | . 255 1055 Explosions 508 | . . 508 Melee . | . . . Ramming . | . . . Kinetic 1834 | 68 552 1214 Thermal 207 | . 24 183 Explosive 508 | . . 508 Electromagnetic 80 | 80 . . Impact . | . . . Slashing . | . . . Piercing . | . . . Highest Corruption . | . . . Average Corruption . | . . . Corruption Purged . | . . . Corruption Blocked . | . . . Overload Shots . | . . . Overflow Damage 2 | . 2 . Projectiles 2 | . 2 . Explosions . | . . . Melee . | . . . Knockbacks 17 | . 3 14 Impact . | . . . Kinetic 16 | . 3 13 Secondary 1 | . . 1 Self-Inflicted Damage . | . . . Shots . | . . . Rammed . | . . . Targets Rammed . | . . . Kicked . | . . . Crushed . | . . . Highest Temperature 126 | . 126 2 Average Temperature 36 | . 36 2 Received Heat Transfer 321 | . 87 234 Siege Activations . | . . . Robots Corrupted . | . . . Combat Hostiles . | . . . Parts Fried . | . . . Impact Corruptions . | . . . Robots Melted . | . . . Combat Hostiles . | . . . Parts Melted . | . . . Heat Transferred 275 | . 50 225 Parts Sabotaged . | . . . Parts Stolen . | . . . Parts Stripped . | . . . Power Chain Reactions . | . . . Alert | -11 -10 -10 ------- Run | Yrd Mat Sub Peak Influence 232 | 15 232 . Initial 9 | . 9 . Average 90 | 5 97 . Maximum Alert Level 1 | . 1 . Low Security (%) 86 | 100 85 . Level 1 13 | . 14 . Level 2 . | . . . Level 3 . | . . . Level 4 . | . . . Level 5 . | . . . High Security . | . . . Max Security . | . . . Squads Dispatched 3 | . 3 . Investigation 1 | . 1 . Extermination . | . . . Reinforcement 2 | . 2 . Assault . | . . . Garrison . | . . . Intercept . | . . . Searches Triggered . | . . . Construction Impeded . | . . . Haulers Reinforced . | . . . Active Scanning Responses . | . . . Cargo Convoy Interrupts . | . . . Stealth | -11 -10 -10 --------- Run | Yrd Mat Sub Distress Signals 1 | . 1 . Communications Jammed . | . . . Distress Signals . | . . . Times Spotted 43 | . 22 21 Peak Tracking Total 3 | . 3 3 Tactical Retreats 3 | . 2 1 Traps | -11 -10 -10 ------- Run | Yrd Mat Sub Traps Triggered 2 | . 1 1 Indirectly . | . . . Trap Hack Attempts 109 | . . 109 Triggered 1 | . . 1 Disarmed . | . . . Reprogrammed 8 | . . 8 Reused . | . . . Traps Extracted 2 | . . 2 Installed . | . . . Triggered . | . . . Most Traps Carried 2 | . . 2 Machines | -11 -10 -10 ---------- Run | Yrd Mat Sub Machines Disabled 3 | . 2 1 Max in Single Turn 1 | . 1 1 Machines Repaired . | . . . Machines Dismantled . | . . . Machines Sabotaged . | . . . Overloaded Fab Kills . | . . . Hacking | -11 -10 -10 --------- Run | Yrd Mat Sub Machines Accessed 9 | . 7 2 Terminals 6 | . 6 . Fabricators . | . . . Repair Stations 1 | . 1 . Recycling Units . | . . . Scanalyzers . | . . . Garrison Access . | . . . Total Hacks 28 | . 22 6 Successful 15 | . 9 6 Failed 12 | . 12 . Catastrophic 1 | . 1 . Database Lockouts 1 | . 1 . Manual 16 | . 16 . Terminals 20 | . 20 . Fabricators . | . . . Repair Stations 2 | . 2 . Recycling Units . | . . . Scanalyzers . | . . . Garrison Access . | . . . Terminal Hacks 11 | . 5 6 Record 5 | . . 5 Robot Analysis 2 | . 2 . Prototype ID Bank 1 | . 1 . Locate Traps 1 | . 1 . Zone Layout 1 | . 1 . Derelict Proto ID Bank 1 | . . 1 Fabricator Hacks . | . . . Repair Station Hacks 1 | . 1 . Refit 1 | . 1 . Recycling Unit Hacks . | . . . Scanalyzer . | . . . Garrison Access Hacks . | . . . Unauthorized Hacks 3 | . 3 . Terminals 3 | . 3 . Skim 3 | . 3 . Fabricators . | . . . Repair Stations . | . . . Recycling Units . | . . . Scanalyzers . | . . . Garrison Access . | . . . Data Cores Recovered . | . . . Used . | . . . Hacking Detections 6 | . 6 . Full Trace Events . | . . . Feedback Events . | . . . Feedback Blocked . | . . . Robot Schematics Acquired . | . . . Robots Built . | . . . Authchips . | . . . Time . | . . . Total Robot Build Rating . | . . . Part Schematics Acquired . | . . . Parts Built . | . . . Authchips . | . . . Time . | . . . Total Part Build Rating . | . . . Parts Repaired . | . . . Time . | . . . Parts Recycled . | . . . Recycled Matter . | . . . Retrieved Matter . | . . . Retrieved Components . | . . . Parts Scanalyzed . | . . . Part Schematics Acquired . | . . . Parts Damaged . | . . . Bothacking | -11 -10 -10 ------------ Run | Yrd Mat Sub Used RIF Installer . | . . . Robots Hacked . | . . . Non-combat . | . . . Combat . | . . . Robot Hacks Applied . | . . . Relay Couplers Released . | . . . Fabnet Peak Effective % . | . . . Robots Rewired . | . . . Allies Hacked . | . . . Hacks Repelled . | . . . Allies | -11 -10 -10 -------- Run | Yrd Mat Sub Total Allies . | . . . Largest Group . | . . . Highest-Rated Group . | . . . Highest-Rated Ally . | . . . Total Orders . | . . . Ally Attacks . | . . . Total Damage . | . . . Kills . | . . . Allies Corrupted . | . . . Allies Melted . | . . . Intel | -11 -10 -10 ------- Run | Yrd Mat Sub Robot Analysis Total 2 | . 2 . Derelict Logs Recovered . | . . . Drone Launches . | . . . Drone Recoveries . | . . . Exploration | -11 -10 -10 ------------- Run | Yrd Mat Sub Turns Passed 4439 | 96 1105 3238 Spaces Moved 1464 | 65 525 874 Core 2 | 2 . . Treads 411 | . 180 231 Legs . | . . . Wheels 1051 | 63 345 643 Hover . | . . . Flight . | . . . Fastest Speed 50 | 50 95 160 Average Speed 229 | 87 117 307 Slowest Speed 560 | 95 160 560 Overloaded Moves . | . . . Propulsion Burnouts . | . . . Robots Hopped . | . . . Cave-ins Triggered . | . . . Exploration Rate (%) 48 | 3 88 53 Regions Visited 2 Branch Regions 1 Pre-discovered Areas 1 | . . 1 Known Exits Taken . | . . . Unknown Exits Taken 2 | 1 1 . Scrap Searched . | . . . Spaces Dug 4 | . 4 . Terrain Destroyed 29 | . 8 21 Melee . | . . . Projectile 8 | . 8 . AOE 21 | . . 21 Terrain Rammed . | . . . Walls Destroyed . | . . . Machines Disabled . | . . . Actions | -11 -10 -10 --------- Run | Yrd Mat Sub Total 2313 | 86 930 1297 Wait 496 | . 322 174 Move 1462 | 64 524 874 Hop . | . . . Pick Up 56 | 7 9 40 Fast Attach 16 | 6 5 5 Attach 12 | 1 1 10 Detach 5 | . 2 3 Swap 17 | 1 7 9 Drop 18 | . 13 5 Fire 122 | 7 47 68 Melee . | . . . Ram . | . . . Kick . | . . . Crush . | . . . Escape Stasis . | . . . Rewire . | . . . Trap 109 | . . 109 Miscellaneous . | . . . Route ------- -11/Scrapyard -10/Materials (discovered 5 exits: [*Mat x2] / [*Min x2] / *Sub) -10/Subcaves (discovered 1 exit: [*Mat]) History --------- Turn | Location | Event 28 | -11/Scrapyard | Discovered new exit (range 14) 97 | -11/Scrapyard | Entered Materials 342 | -10/Materials | Discovered new exit (range 8) 344 | -10/Materials | Build established: Mutant 384 | -10/Materials | Discovered new exit (range 3) 473 | -10/Materials | Discovered new exit (range 10) 486 | -10/Materials | Central database locked down 540 | -10/Materials | Discovered new exit (range 16) 1140 | -10/Materials | Discovered new exit (range 3) 1202 | -10/Materials | Entered Subcaves 1525 | -10/Subcaves | Build established: Hauler-Mutant 1585 | -10/Subcaves | A swath of the cavern ceiling suddenly collapsed 1819 | -10/Subcaves | Visited 4L-MR0's lab 1838 | -10/Subcaves | Found Gun Armor 2529 | -10/Subcaves | Ambushed by Subdwellers from Twisted Machinery 2553 | -10/Subcaves | Core integrity fell below 50% 2575 | -10/Subcaves | Shifting Twisted Machinery released Sub. Monowheel 2581 | -10/Subcaves | Shifting Twisted Machinery released Battle Rifle 2686 | -10/Subcaves | Core integrity fell below 20% 2773 | -10/Subcaves | Discovered new exit (range 11) 3023 | -10/Subcaves | Ambushed by Subdwellers from Twisted Machinery 3352 | -10/Subcaves | Visited Clippyterm 3369 | -10/Subcaves | Learned location of Section 7 (-2) 3369 | -10/Subcaves | Learned Research machine intel 4440 | -10/Subcaves | Destroyed by S-10 Pest with Light Assault Rifle Last Messages --------------- 03875_ Acquired Flamer. 03882_ Subatomizers dissect the Imp. Light Cannon. 03887_ Acquired Assault Rifle. 03894_ Acquired Lgt. Ion Engine. 03900_ Acquired Broken Sub. Monowheel. 03907_ Acquired Core Shielding. 03913_ Acquired Sub. Power Source. 03920_ Subatomizers dissect the Imp. Light Cannon. 03920_ Acquired Battle Rifle. 03927_ Acquired Sml. Storage Unit. 03932_ Subatomizers dissect the Imp. Light Cannon. 03933_ Acquired Imp. Light Cannon. 03940_ Acquired Sub. Machine Gun. 03974_ Acquired Trap Extractor. 03981_ Attempting to reprogram Piercing Trap. 04011_ Piercing Trap reprogrammed. Map ----- +----------------------------------------------------+ | ?????????????????????????????????????????????????? | | ?????????????????????????????????????????????????? | | ?????????????????????????????????????????????????? | | ?????????????????????????????????????????????????? | | ?????????????????????????????????????????????????? | | ?????????????????????????????????????????????????? | | ?????????????????????????????????????????????????? | | ?????????????????????????????????????????????????? | | ?????????????????????????????????????????????????? | | ?????????????????????????????????????????????????? | | ?????????????????????????????????????????????????? | | ?????????????????????????????????????????????????? | | ?????????????????????????????????????????????????? | | ?????????????????????????????????????????????????? | | ?????????????????????????????????????????????????? | | ?????????????????????????????????????????????????? | | ?????????????????????????????????????????????????? | | ?????????????????????????????????????????????????? | | ?????????????????????????????????????????????????? | | ??????????????????????????###????????????????????? | | ??????????????????????????# #######????###???????? | | ??????????????????????????# ##?## ##??????? | | ??????????????????????????# ### #?????## | | ?????????????????????????## #????## | | ????????????????????????## #??? | | ????????????????????????#@ ### ##??? | | ????????????????????????# ##?## ##??? | | ????????????????????????# ## ###??# ###? | | ????????????????????????#ss####????## # ## | | ??????????????????????? s#???????## | | ?????????????????????? #???????# | | ?????????????????????### ###???????### ### | | ???????????????????????##????????????### ##?# | | ???????????????????????????????????????# #??# | | ???????????????????????????????????????# #??# | | ???????????????????????????????????????# #### # | | ???????????????????????????????????????# ## # | | ???????????????????????????????????????### | | ?????????????????????????????????????????## | | ??????????????????????????????????????????# | | ??????????????????????????????????????????## | | ???????????????????????????????????????????## | | ?????????????????????????????????????????##### | | ?????????????????????????????????????????# ####### | | ????????????????????????????????????????## ##???? | | ???????????????????????????????????????## ####? | | ????????????????????????????????????#### ## | | ????????????????????????????????##### " ## | | ???????????????####?###???#######""" " | | ???????????????# ### ###?# " " | +----------------------------------------------------+ Best States ------------- Heat Dissipation 25 Energy Generation 15 Energy Capacity 250 Matter Stores 300 Matter Capacity 300 Sight Range 16 Terrain Scan Density 10 Core Shielding 20 Evasion (%) 44 Recoil Reduction 2 Trap Extractor Capacity 4 Item Schematics ----------------- None Robot Schematics ------------------ None Fabricated ------------ Nothing Alien Tech Used ----------------- None Achievements -------------- None Challenges ------------ None Game ------ Seed BombardmentLayeredMatter Manual? 0 Play Time 00:22:45 Cumulative 489.7 hours Start 2024.08.25 @ 19:22:34 End 2024.08.25 @ 19:45:27 Sessions 1 Manual Loads 0 Difficulty Rogue Special Mode None Game No. 188 Rogue 185 Adventurer 3 Explorer 0 Win Type - Total 7 Types 4/1/0/1/0/1/0/0/0 Lore% 77 Gallery% 87 Achievement% 87 Wizard Run 0 Options --------- Layout 1 ASCII 0 Keyboard 0 Movement Numpad Keybinds 0 Fullscreen 2 Font 24/Smallcaps Map View 50x35 Zoom Use 0% Tactical HUD 1 Map Filters NONE Filters NONE Steam 1 RUN: 9d447fa6-8801-4844-b756-83f0115a779a